fUST/lending_fUST_20250814
["ID","MTS","AMOUNT","RATE_DAILY","PERIOD"]
[379095156,1755130241070,-151.0,0.00019452,2]
[379095157,1755130241080,-151.0,0.00019452,2]
[379095158,1755130241089,-182.766769,0.00019452,2]
[379095159,1755130241099,-182.766769,0.00019452,2]
[379095160,1755130241108,-182.766769,0.00019452,2]
[379095161,1755130241118,-182.766769,0.00019452,2]
[379095162,1755130241127,-182.766769,0.00019452,2]
[379095163,1755130241137,-182.766769,0.00019452,2]
[379095164,1755130241146,-151.0,0.00019452,2]
[379095165,1755130241157,-151.0,0.00019452,2]
[379095166,1755130241166,-151.0,0.00019452,2]
[379095167,1755130241176,-151.0,0.00019452,2]
[379095168,1755130241186,-151.0,0.00019452,2]
[379095169,1755130241195,-151.0,0.00019452,2]
[379095170,1755130241205,-151.0,0.00019452,2]
[379095171,1755130241214,-151.0,0.00019452,2]
[379095172,1755130241224,-298.44192,0.00019452,2]
[379095173,1755130241237,-460.0,0.00019452,2]
[379095174,1755130241246,-301.5907,0.00019452,2]
[379095175,1755130241257,-301.5907,0.00019452,2]
[379095176,1755130241266,-301.5907,0.00019452,2]
[379095177,1755130241277,-301.5907,0.00019452,2]
[379095178,1755130241287,-460.0,0.00019452,2]
[379095179,1755130241296,-301.5907,0.00019452,2]
[379095180,1755130241305,-301.5907,0.00019452,2]
[379095181,1755130241317,-460.0,0.00019452,2]
[379095182,1755130241327,-460.0,0.00019452,2]
[379095183,1755130241337,-460.0,0.00019452,2]
[379095184,1755130241347,-460.0,0.00019452,2]
[379095185,1755130241356,-460.0,0.00019452,2]
[379095186,1755130241367,-460.0,0.00019452,2]
[379095187,1755130241377,-483.84,0.00019452,2]
[379095188,1755130241386,-460.0,0.00019452,2]
[379095189,1755130241396,-460.0,0.00019452,2]
[379095190,1755130241406,-460.0,0.00019452,2]
[379095191,1755130241416,-460.0,0.00019452,2]
[379095192,1755130241426,-460.0,0.00019452,2]
[379095193,1755130241435,-151.0,0.00019452,2]
[379095194,1755130241445,-151.0,0.00019452,2]
[379095195,1755130241454,-151.0,0.00019452,2]
[379095196,1755130241464,-460.0,0.00019452,2]
[379095197,1755130241474,-460.0,0.00019452,2]
[379095198,1755130241484,-1010.24,0.00019452,2]
[379095199,1755130241494,-460.0,0.00019452,2]
[379095200,1755130241504,-460.0,0.00019452,2]
[379095201,1755130241514,-460.0,0.00019452,2]
[379095202,1755130241524,-460.0,0.00019452,2]
[379095203,1755130241533,-460.0,0.00019452,2]
[379095204,1755130241542,-460.0,0.00019452,2]
[379095205,1755130241552,-460.0,0.00019452,2]
[379095206,1755130241561,-613.77,0.00019452,2]
[379095207,1755130241571,-460.0,0.00019452,2]
[379095208,1755130241580,-610.78,0.00019452,2]
[379095209,1755130241589,-460.0,0.00019452,2]
[379095210,1755130241599,-460.0,0.00019452,2]
[379095211,1755130241608,-353.82617132,0.00019452,2]
[379095212,1755130241618,-698.5,0.00019452,2]
[379095213,1755130241627,-460.0,0.00019452,2]
[379095214,1755130241636,-460.0,0.00019452,2]
[379095215,1755130241646,-460.0,0.00019452,2]
[379095216,1755130241655,-857.56,0.00019452,2]
[379095217,1755130241665,-950.52,0.00019452,2]
[379095218,1755130241675,-460.0,0.00019452,2]
[379095219,1755130241686,-520.65,0.00019452,2]
[379095220,1755130241697,-460.0,0.00019452,2]
[379095221,1755130241708,-460.0,0.00019452,2]
[379095222,1755130241719,-460.0,0.00019452,2]
[379095223,1755130241730,-177.95598,0.00019452,2]
[379095224,1755130241741,-177.95598,0.00019452,2]
[379095225,1755130241752,-177.95598,0.00019452,2]
[379095226,1755130241762,-460.0,0.00019452,2]
[379095227,1755130241772,-177.95598,0.00019452,2]
[379095228,1755130241783,-177.95598,0.00019452,2]
[379095229,1755130241793,-177.95598,0.00019452,2]
[379095230,1755130241804,-151.0,0.00019452,2]
[379095231,1755130241814,-151.0,0.00019452,2]
[379095232,1755130241825,-151.0,0.00019452,2]
[379095233,1755130241837,-460.0,0.00019452,2]
[379095234,1755130241848,-460.0,0.00019452,2]
[379095235,1755130241859,-460.0,0.00019452,2]
[379095236,1755130241869,-645.8,0.00019452,2]
[379095237,1755130241880,-460.0,0.00019452,2]
[379095238,1755130241891,-460.0,0.00019452,2]
[379095239,1755130241901,-460.0,0.00019452,2]
[379095240,1755130241910,-460.0,0.00019452,2]
[379095241,1755130241920,-457.42718676,0.00019452,2]
[379095242,1755130241931,-460.0,0.00019452,2]
[379095243,1755130241940,-199.744435,0.00019452,2]
[379095244,1755130241952,-199.744435,0.00019452,2]
[379095245,1755130241961,-599.29,0.00019452,2]
[379095246,1755130241970,-199.744435,0.00019452,2]
[379095247,1755130241980,-199.744435,0.00019452,2]
[379095248,1755130241989,-199.744435,0.00019452,2]
[379095249,1755130241999,-199.744435,0.00019452,2]
[379095250,1755130242008,-288.01113094,0.00019452,2]
[379095251,1755130242018,-1020.49,0.00019452,2]
[379095252,1755130242027,-460.0,0.00019452,2]
[379095253,1755130242037,-460.0,0.00019452,2]
[379095254,1755130242047,-460.0,0.00019452,2]
[379095255,1755130242056,-460.0,0.00019452,2]
[379095256,1755130242066,-460.0,0.00019452,2]
[379095257,1755130242076,-460.0,0.00019452,2]
[379095258,1755130242085,-460.0,0.00019452,2]
[379095259,1755130242094,-460.0,0.00019452,2]
[379095260,1755130242103,-460.0,0.00019452,2]
[379095261,1755130242112,-460.0,0.00019452,2]
[379095262,1755130242122,-460.0,0.00019452,2]
[379095263,1755130242131,-460.0,0.00019452,2]
[379095264,1755130242140,-460.0,0.00019452,2]
[379095265,1755130242150,-460.0,0.00019452,2]
[379095266,1755130242159,-460.0,0.00019452,2]
[379095267,1755130242168,-691.53,0.00019452,2]
[379095268,1755130242177,-460.0,0.00019452,2]
[379095269,1755130242187,-189.28,0.00019452,2]
[379095270,1755130242196,-460.0,0.00019452,2]
[379095271,1755130242205,-460.0,0.00019452,2]
[379095272,1755130242214,-460.0,0.00019452,2]
[379095273,1755130242223,-460.0,0.00019452,2]
[379095274,1755130242236,-460.0,0.00019452,2]
[379095275,1755130242246,-460.0,0.00019452,2]
[379095276,1755130242255,-500.98,0.00019452,2]
[379095277,1755130242265,-460.0,0.00019452,2]
[379095278,1755130242274,-460.0,0.00019452,2]
[379095279,1755130242285,-460.0,0.00019452,2]
[379095280,1755130242295,-460.0,0.00019452,2]
[379095281,1755130242305,-715.08,0.00019452,2]
[379095282,1755130242314,-460.0,0.00019452,2]
[379095283,1755130242324,-270.42132079,0.00019452,2]
[379095284,1755130242333,-800.62,0.00019452,2]
[379095285,1755130242343,-649.05,0.00019452,2]
[379095286,1755130242352,-681.78,0.00019452,2]
[379095287,1755130242362,-1516.57,0.00019452,2]
[379095288,1755130242371,-460.0,0.00019452,2]
[379095290,1755130242380,-460.0,0.00019452,2]
[379095291,1755130242390,-460.0,0.00019452,2]
[379095292,1755130242399,-460.0,0.00019452,2]
[379095293,1755130242408,-460.0,0.00019452,2]
[379095294,1755130242418,-344.27759274,0.00019452,2]
[379095296,1755130242427,-1522.08,0.00019452,2]
[379095298,1755130242436,-1047.29,0.00019452,2]
[379095300,1755130242446,-460.0,0.00019452,2]
[379095302,1755130242455,-460.0,0.00019452,2]
[379095304,1755130242464,-460.0,0.00019452,2]
[379095306,1755130242474,-460.0,0.00019452,2]
[379095308,1755130242483,-1123.89,0.00019452,2]
[379095330,1755130242493,-460.0,0.00019452,2]
[379095332,1755130242684,-460.0,0.00019452,2]
[379095333,1755130242694,-460.0,0.00019452,2]
[379095334,1755130242703,-2940.13,0.00019452,2]
[379095335,1755130242715,-494.79236057,0.00019452,2]
[379095336,1755130242724,-1113.83,0.00019452,2]
[379095337,1755130242733,-460.0,0.00019452,2]
[379095338,1755130242742,-535.33,0.00019452,2]
[379095339,1755130242751,-460.0,0.00019452,2]
[379095340,1755130242761,-492.29,0.00019452,2]
[379095341,1755130242771,-470.81,0.00019452,2]
[379095342,1755130242779,-619.32,0.00019452,2]
[379095343,1755130242789,-482.55,0.00019452,2]
[379095344,1755130242798,-460.0,0.00019452,2]
[379095345,1755130242807,-460.0,0.00019452,2]
[379095346,1755130242816,-1082.17898729,0.00019452,2]
[379095348,1755130243101,-1919.54101271,0.00019452,2]
[379095349,1755130243111,-487.9,0.00019452,2]
[379095351,1755130243120,-460.0,0.00019452,2]
[379095353,1755130243130,-460.0,0.00019452,2]
[379095355,1755130243139,-460.0,0.00019452,2]
[379095357,1755130243148,-460.0,0.00019452,2]
[379095359,1755130243157,-460.0,0.00019452,2]
[379095361,1755130243166,-17431.36,0.00019452,2]
[379095362,1755130243176,-460.0,0.00019452,2]
[379095363,1755130243186,-460.0,0.00019452,2]
[379095364,1755130243195,-460.0,0.00019452,2]
[379095365,1755130243204,-460.0,0.00019452,2]
[379095366,1755130243213,-564.94,0.00019452,2]
[379095367,1755130243222,-460.0,0.00019452,2]
[379095368,1755130243233,-460.0,0.00019452,2]
[379095369,1755130243243,-460.0,0.00019452,2]
[379095370,1755130243252,-460.0,0.00019452,2]
[379095371,1755130243262,-460.0,0.00019452,2]
[379095372,1755130243271,-460.0,0.00019452,2]
[379095373,1755130243282,-562.63,0.00019452,2]
[379095374,1755130243291,-460.0,0.00019452,2]
[379095375,1755130243301,-460.0,0.00019452,2]
[379095376,1755130243312,-460.0,0.00019452,2]
[379095377,1755130243322,-460.0,0.00019452,2]
[379095378,1755130243331,-460.0,0.00019452,2]
[379095379,1755130243340,-460.0,0.00019452,2]
[379095380,1755130243350,-460.0,0.00019452,2]
[379095381,1755130243359,-460.0,0.00019452,2]
[379095382,1755130243368,-460.0,0.00019452,2]
[379095383,1755130243378,-3057.92,0.00019452,2]
[379095384,1755130243387,-460.0,0.00019452,2]
[379095385,1755130243397,-37177.42,0.00019452,2]
[379095386,1755130243407,-460.0,0.00019452,2]
[379095387,1755130243416,-460.0,0.00019452,2]
[379095388,1755130243425,-460.0,0.00019452,2]
[379095389,1755130243434,-460.0,0.00019452,2]
[379095391,1755130243444,-3202.85,0.00019452,2]
[379095392,1755130243453,-460.0,0.00019452,2]
[379095393,1755130243462,-460.0,0.00019452,2]
[379095394,1755130243471,-460.0,0.00019452,2]
[379095395,1755130243482,-460.0,0.00019452,2]
[379095396,1755130243491,-840.32,0.00019452,2]
[379095397,1755130243501,-460.0,0.00019452,2]
[379095398,1755130243510,-1595.92,0.00019452,2]
[379095399,1755130243519,-692.66,0.00019452,2]
[379095400,1755130243530,-1069.01,0.00019452,2]
[379095401,1755130243539,-1081.51,0.00019452,2]
[379095402,1755130243549,-811.58,0.00019452,2]
[379095403,1755130243558,-848.07,0.00019452,2]
[379095404,1755130243567,-707.06,0.00019452,2]
[379095405,1755130243576,-460.0,0.00019452,2]
[379095406,1755130243585,-1146.99,0.00019452,2]
[379095407,1755130243594,-1346.91,0.00019452,2]
[379095408,1755130243603,-727.1,0.00019452,2]
[379095409,1755130243612,-460.0,0.00019452,2]
[379095410,1755130243622,-460.0,0.00019452,2]
[379095411,1755130243631,-460.0,0.00019452,2]
[379095412,1755130243640,-460.0,0.00019452,2]
[379095413,1755130243649,-460.0,0.00019452,2]
[379095414,1755130243658,-460.0,0.00019452,2]
[379095415,1755130243667,-721.42,0.00019452,2]
[379095416,1755130243676,-1053.03,0.00019452,2]
[379095417,1755130243685,-460.0,0.00019452,2]
[379095418,1755130243694,-460.0,0.00019452,2]
[379095419,1755130243703,-460.0,0.00019452,2]
[379095420,1755130243712,-460.0,0.00019452,2]
[379095421,1755130243721,-1096.46,0.00019452,2]
[379095422,1755130243730,-460.0,0.00019452,2]
[379095423,1755130243739,-460.0,0.00019452,2]
[379095424,1755130243749,-496.39,0.00019452,2]
[379095425,1755130243757,-1800.67,0.00019452,2]
[379095426,1755130243767,-1131.2,0.00019452,2]
[379095427,1755130243775,-460.0,0.00019452,2]
[379095428,1755130243785,-1266.5,0.00019452,2]
[379095429,1755130243794,-3923.92,0.00019452,2]
[379095430,1755130243803,-1048.37,0.00019452,2]
[379095431,1755130243812,-460.0,0.00019452,2]
[379095432,1755130243821,-460.0,0.00019452,2]
[379095433,1755130243830,-460.0,0.00019452,2]
[379095434,1755130243839,-1175.07,0.00019452,2]
[379095435,1755130243848,-954.73,0.00019452,2]
[379095436,1755130243857,-1807.92,0.00019452,2]
[379095437,1755130243865,-621.37,0.00019452,2]
[379095438,1755130243875,-460.0,0.00019452,2]
[379095439,1755130243884,-460.0,0.00019452,2]
[379095440,1755130243893,-592.95,0.00019452,2]
[379095442,1755130243902,-460.0,0.00019452,2]
[379095443,1755130243911,-460.0,0.00019452,2]
[379095444,1755130243922,-1347.6,0.00019452,2]
[379095445,1755130243931,-17579.37,0.00019452,2]
[379095446,1755130243940,-761.29,0.00019452,2]
[379095447,1755130243949,-2781.6,0.00019452,2]
[379095448,1755130243958,-460.0,0.00019452,2]
[379095449,1755130243967,-460.0,0.00019452,2]
[379095450,1755130243976,-573.21,0.00019452,2]
[379095451,1755130243986,-1036.7,0.00019452,2]
[379095452,1755130243995,-1948.93,0.00019452,2]
[379095453,1755130244004,-460.0,0.00019452,2]
[379095454,1755130244014,-460.0,0.00019452,2]
[379095455,1755130244025,-1708.35,0.00019452,2]
[379095456,1755130244036,-1244.08,0.00019452,2]
[379095457,1755130244047,-498.08,0.00019452,2]
[379095458,1755130244059,-497.28,0.00019452,2]
[379095459,1755130244070,-718.71,0.00019452,2]
[379095460,1755130244081,-1003.08,0.00019452,2]
[379095461,1755130244091,-12369.83,0.00019452,2]
[379095462,1755130244102,-460.0,0.00019452,2]
[379095463,1755130244114,-159.29,0.00019452,2]
[379095464,1755130244126,-460.0,0.00019452,2]
[379095465,1755130244135,-460.0,0.00019452,2]
[379095466,1755130244146,-460.0,0.00019452,2]
[379095467,1755130244156,-460.0,0.00019452,2]
[379095468,1755130244167,-1075.34,0.00019452,2]
[379095469,1755130244179,-460.0,0.00019452,2]
[379095470,1755130244190,-4313.17,0.00019452,2]
[379095471,1755130244202,-460.0,0.00019452,2]
[379095472,1755130244211,-801.16,0.00019452,2]
[379095473,1755130244224,-460.0,0.00019452,2]
[379095474,1755130244237,-460.0,0.00019452,2]
[379095475,1755130244247,-460.0,0.00019452,2]
[379095476,1755130244257,-460.0,0.00019452,2]
[379095477,1755130244266,-460.0,0.00019452,2]
[379095478,1755130244276,-703.33,0.00019452,2]
[379095479,1755130244286,-460.0,0.00019452,2]
[379095480,1755130244295,-1025.74,0.00019452,2]
[379095481,1755130244304,-545.85,0.00019452,2]
[379095482,1755130244316,-460.0,0.00019452,2]
[379095483,1755130244326,-460.0,0.00019452,2]
[379095484,1755130244337,-1270.56,0.00019452,2]
[379095485,1755130244346,-1257.19,0.00019452,2]
[379095486,1755130244356,-4363.55,0.00019452,2]
[379095487,1755130244367,-533.68477361,0.00019452,2]
[379095488,1755130244377,-460.0,0.00019452,2]
[379095489,1755130244387,-460.0,0.00019452,2]
[379095490,1755130244397,-793.32,0.00019452,2]
[379095491,1755130244408,-460.0,0.00019452,2]
[379095492,1755130244418,-641.68,0.00019452,2]
[379095493,1755130244429,-460.0,0.00019452,2]
[379095494,1755130244438,-3737.21,0.00019452,2]
[379095495,1755130244447,-460.0,0.00019452,2]
[379095496,1755130244456,-460.0,0.00019452,2]
[379095497,1755130244466,-1256.99,0.00019452,2]
[379095498,1755130244475,-460.0,0.00019452,2]
[379095499,1755130244484,-989.07,0.00019452,2]
[379095500,1755130244493,-460.0,0.00019452,2]
[379095501,1755130244502,-666.23209579,0.00019452,2]
[379095502,1755130244516,-176.12790421,0.00019452,2]
[379095503,1755130244525,-460.0,0.00019452,2]
[379095504,1755130244534,-849.66,0.00019452,2]
[379095505,1755130244543,-1153.88,0.00019452,2]
[379095506,1755130244552,-460.0,0.00019452,2]
[379095507,1755130244562,-460.0,0.00019452,2]
[379095508,1755130244571,-460.0,0.00019452,2]
[379095509,1755130244581,-471.4,0.00019452,2]
[379095510,1755130244591,-500.0,0.00019452,2]
[379095511,1755130244600,-500.0,0.00019473,2]
[379095512,1755130244609,-500.0,0.00019473,2]
[379095513,1755130244618,-500.0,0.00019473,2]
[379095514,1755130244627,-500.0,0.00019473,2]
[379095515,1755130244637,-500.0,0.00019473,2]
[379095516,1755130244646,-500.0,0.00019473,2]
[379095517,1755130244655,-500.0,0.00019473,2]
[379095518,1755130244664,-345.79956745,0.00019473,2]
[379095519,1755130244676,-154.20043255,0.00019473,2]
[379095520,1755130244686,-500.0,0.00019473,2]
[379095521,1755130244695,-500.0,0.00019473,2]
[379095522,1755130244704,-502.04359418,0.00019473,2]
[379095523,1755130244713,-500.0,0.00019473,2]
[379095524,1755130244723,-500.0,0.00019473,2]
[379095525,1755130244732,-500.0,0.00019473,2]
[379095526,1755130244742,-500.0,0.00019473,2]
[379095527,1755130244751,-554.74712268,0.00019473,2]
[379095528,1755130244760,-265.19871194,0.00019473,2]
[379095529,1755130244769,-500.0,0.00019473,2]
[379095530,1755130244778,-500.0,0.00019473,2]
[379095531,1755130244788,-500.0,0.00019473,2]
[379095532,1755130244797,-500.0,0.00019473,2]
[379095533,1755130244806,-284.87652656,0.00019473,2]
[379095536,1755130246016,-215.12347344,0.00019473,2]
[379095537,1755130246028,-500.0,0.00019473,2]
[379095538,1755130246037,-463.88502259,0.00019473,2]
[379095539,1755130246049,-105.05511076,0.00019473,2]
[379095540,1755130246058,-500.0,0.00019473,2]
[379095541,1755130246067,-500.0,0.00019473,2]
[379095542,1755130246077,-396.61141552,0.00019473,2]
[379095544,1755130246086,-500.0,0.00019473,2]
[379095545,1755130246095,-500.0,0.00019473,2]
[379095546,1755130246104,-500.0,0.00019473,2]
[379095547,1755130246113,-500.0,0.00019473,2]
[379095548,1755130246123,-500.0,0.00019473,2]
[379095549,1755130246132,-121.48316876,0.00019473,2]
[379095550,1755130246143,-379.38323291,0.00019473,2]
[379095551,1755130246152,-193.59613261,0.00019473,2]
[379095573,1755131438431,-306.40386739,0.00019473,2]
[379095574,1755131438441,-500.0,0.00019473,2]
[379095575,1755131438451,-500.0,0.00019473,2]
[379095576,1755131438464,-500.0,0.00019473,2]
[379095577,1755131438474,-341.0642028,0.00019473,2]
[379095578,1755131438495,-168.0,0.00019499,2]
[379095579,1755131438505,-500.0,0.00019519,2]
[379095580,1755131438515,-160.0,0.00019543,2]
[379095581,1755131438525,-160.0,0.00019543,2]
[379095582,1755131438535,-2.75009852,0.00019543,2]
[379095583,1755131438548,-157.24990148,0.00019543,2]
[379095584,1755131438558,-160.0,0.00019543,2]
[379095585,1755131438568,-1000.0,0.000196,2]
[379095586,1755131438578,-1000.0,0.000196,2]
[379095587,1755131438587,-274.32002668,0.000196,2]
[379095599,1755131440137,-725.67997332,0.000196,2]
[379095600,1755131440146,-1000.0,0.000196,2]
[379095601,1755131440156,-1000.0,0.000196,2]
[379095602,1755131440166,-1000.0,0.000196,2]
[379095603,1755131440176,-1000.0,0.000196,2]
[379095604,1755131440186,-168.0,0.00019616,2]
[379095605,1755131440197,-1760.0,0.00019616,2]
[379095606,1755131440207,-196.31085687,0.00019616,2]
[379095607,1755131440216,-168.0,0.00019635,2]
[379095608,1755131440226,-168.0,0.00019644,2]
[379095609,1755131440236,-205.20509261,0.00019664,2]
[379095610,1755131440246,-151.0,0.000197,2]
[379095611,1755131440256,-151.0,0.00019726,2]
[379095612,1755131440266,-168.900189,0.00019726,2]
[379095613,1755131440275,-168.900189,0.00019726,2]
[379095614,1755131440285,-151.0,0.00019726,2]
[379095615,1755131440295,-151.0,0.00019726,2]
[379095616,1755131440304,-151.0,0.00019726,2]
[379095617,1755131440314,-151.0,0.00019726,2]
[379095618,1755131440324,-151.0,0.00019726,2]
[379095619,1755131440334,-151.0,0.00019726,2]
[379095620,1755131440344,-212.074647,0.00019726,2]
[379095621,1755131440353,-212.074647,0.00019726,2]
[379095622,1755131440364,-151.0,0.00019726,2]
[379095623,1755131440374,-745.316575,0.00019726,2]
[379095624,1755131440384,-745.316575,0.00019726,2]
[379095625,1755131440393,-151.0,0.00019726,2]
[379095626,1755131440403,-170.833222,0.00019726,2]
[379095627,1755131440413,-315.097954,0.00019726,2]
[379095628,1755131440423,-315.097954,0.00019726,2]
[379095629,1755131440433,-151.0,0.00019726,2]
[379095630,1755131440443,-205.694368,0.00019726,2]
[379095631,1755131440452,-205.694368,0.00019726,2]
[379095632,1755131440462,-151.0,0.00019726,2]
[379095633,1755131440472,-151.0,0.00019726,2]
[379095634,1755131440481,-339.860798,0.00019726,2]
[379095635,1755131440491,-339.860798,0.00019726,2]
[379095636,1755131440501,-151.0,0.00019726,2]
[379095637,1755131440511,-151.0,0.00019726,2]
[379095638,1755131440521,-162.649314,0.00019726,2]
[379095639,1755131440530,-182.766769,0.00019726,2]
[379095640,1755131440540,-182.766769,0.00019726,2]
[379095641,1755131440550,-182.766769,0.00019726,2]
[379095642,1755131440559,-182.766769,0.00019726,2]
[379095643,1755131440569,-151.0,0.00019726,2]
[379095644,1755131440579,-151.0,0.00019726,2]
[379095645,1755131440589,-151.0,0.00019726,2]
[379095646,1755131440599,-151.0,0.00019726,2]
[379095647,1755131440609,-460.0,0.00019726,2]
[379095648,1755131440619,-301.5907,0.00019726,2]
[379095649,1755131440629,-301.5907,0.00019726,2]
[379095650,1755131440640,-301.5907,0.00019726,2]
[379095651,1755131440650,-460.0,0.00019726,2]
[379095652,1755131440660,-301.5907,0.00019726,2]
[379095653,1755131440669,-301.5907,0.00019726,2]
[379095654,1755131440679,-460.0,0.00019726,2]
[379095655,1755131440689,-301.5907,0.00019726,2]
[379095656,1755131440698,-460.0,0.00019726,2]
[379095657,1755131440708,-460.0,0.00019726,2]
[379095658,1755131440718,-460.0,0.00019726,2]
[379095659,1755131440727,-460.0,0.00019726,2]
[379095660,1755131440737,-483.84,0.00019726,2]
[379095661,1755131440748,-460.0,0.00019726,2]
[379095662,1755131440758,-460.0,0.00019726,2]
[379095663,1755131440768,-460.0,0.00019726,2]
[379095664,1755131440778,-460.0,0.00019726,2]
[379095665,1755131440788,-460.0,0.00019726,2]
[379095666,1755131440802,-151.0,0.00019726,2]
[379095667,1755131440812,-151.0,0.00019726,2]
[379095668,1755131440822,-460.0,0.00019726,2]
[379095669,1755131440832,-460.0,0.00019726,2]
[379095670,1755131440842,-1010.24,0.00019726,2]
[379095671,1755131440852,-571.60943932,0.00019726,2]
[379095672,1755131440862,-460.0,0.00019726,2]
[379095673,1755131440872,-460.0,0.00019726,2]
[379095674,1755131440882,-460.0,0.00019726,2]
[379095675,1755131440895,-460.0,0.00019726,2]
[379095676,1755131440905,-460.0,0.00019726,2]
[379095677,1755131440915,-613.77,0.00019726,2]
[379095678,1755131440926,-460.0,0.00019726,2]
[379095679,1755131440935,-610.78,0.00019726,2]
[379095680,1755131440945,-460.0,0.00019726,2]
[379095681,1755131440955,-698.5,0.00019726,2]
[379095682,1755131440966,-460.0,0.00019726,2]
[379095683,1755131440977,-460.0,0.00019726,2]
[379095684,1755131440987,-460.0,0.00019726,2]
[379095685,1755131440997,-857.56,0.00019726,2]
[379095686,1755131441007,-950.52,0.00019726,2]
[379095687,1755131441016,-460.0,0.00019726,2]
[379095688,1755131441026,-361.00176387,0.00019726,2]
[379095699,1755131443297,-159.64823613,0.00019726,2]
[379095701,1755131443308,-460.0,0.00019726,2]
[379095702,1755131443318,-460.0,0.00019726,2]
[379095703,1755131443328,-460.0,0.00019726,2]
[379095704,1755131443338,-460.0,0.00019726,2]
[379095705,1755131443348,-177.95598,0.00019726,2]
[379095707,1755131443358,-177.95598,0.00019726,2]
[379095708,1755131443368,-177.95598,0.00019726,2]
[379095709,1755131443378,-177.95598,0.00019726,2]
[379095710,1755131443388,-179.520655,0.00019726,2]
[379095711,1755131443398,-460.0,0.00019726,2]
[379095712,1755131443407,-460.0,0.00019726,2]
[379095713,1755131443417,-602.50516153,0.00019726,2]
[379095714,1755131443427,-645.8,0.00019726,2]
[379095715,1755131443437,-460.0,0.00019726,2]
[379095716,1755131443446,-475.81420231,0.00019726,2]
[379095717,1755131443456,-460.0,0.00019726,2]
[379095718,1755131443466,-460.0,0.00019726,2]
[379095719,1755131443476,-460.0,0.00019726,2]
[379095720,1755131443488,-599.29,0.00019726,2]
[379095721,1755131443498,-199.744435,0.00019726,2]
[379095722,1755131443508,-199.744435,0.00019726,2]
[379095723,1755131443518,-199.744435,0.00019726,2]
[379095724,1755131443528,-199.744435,0.00019726,2]
[379095725,1755131443538,-1020.49,0.00019726,2]
[379095726,1755131443548,-460.0,0.00019726,2]
[379095727,1755131443557,-460.0,0.00019726,2]
[379095728,1755131443568,-174.66,0.00019726,2]
[379095729,1755131443578,-358.14445436,0.00019726,2]
[379095730,1755131443588,-460.0,0.00019726,2]
[379095731,1755131443597,-460.0,0.00019726,2]
[379095732,1755131443607,-460.0,0.00019726,2]
[379095733,1755131443617,-460.0,0.00019726,2]
[379095734,1755131443627,-460.0,0.00019726,2]
[379095735,1755131443637,-460.0,0.00019726,2]
[379095736,1755131443647,-388.78,0.00019726,2]
[379095737,1755131443657,-460.0,0.00019726,2]
[379095738,1755131443669,-460.0,0.00019726,2]
[379095739,1755131443678,-460.0,0.00019726,2]
[379095740,1755131443688,-691.53,0.00019726,2]
[379095741,1755131443698,-460.0,0.00019726,2]